fUSD/lending_fUSD_20260516
["ID","MTS","AMOUNT","RATE_DAILY","PERIOD"]
[422385589,1778919148000,-204.41940609,0.0004,30]
[422385588,1778919148000,-217.6202747,0.0004,30]
[422385586,1778919148000,-160.3085414,0.0004,120]
[422385587,1778919148000,-164.73359022,0.0004,60]
[422385585,1778919148000,-477.12749073,0.0004,30]
[422385584,1778919148000,-222.0041387,0.0004,120]
[422385583,1778919148000,-250.0,0.0004,120]
[422385596,1778919148000,-540.0,0.0004,30]
[422385591,1778919148000,-401.62171117,0.0004,120]
[422385598,1778919148000,-248.97542898,0.0004,120]
[422385593,1778919148000,-164.91872754,0.0004,120]
[422385601,1778919148000,-160.0,0.0004,120]
[422385614,1778919148000,-522.19466201,0.0004,120]
[422385615,1778919148000,-150.48789421,0.0004,30]
[422385612,1778919148000,-1000.0,0.0004,120]
[422385613,1778919148000,-1000.0,0.0004,120]
[422385609,1778919148000,-1000.0,0.0004,120]
[422385610,1778919148000,-1000.0,0.0004,120]
[422385608,1778919148000,-1000.0,0.0004,120]
[422385611,1778919148000,-1000.0,0.0004,120]
[422385607,1778919148000,-1000.0,0.0004,120]
[422385605,1778919148000,-1000.0,0.0004,120]
[422385604,1778919148000,-498.93302679,0.0004,30]
[422385602,1778919148000,-500.0,0.0004,120]
[422385603,1778919148000,-200.0,0.0004,120]
[422385599,1778919148000,-383.98013284,0.0004,120]
[422385606,1778919148000,-1000.0,0.0004,120]
[422385600,1778919148000,-1000.0,0.0004,120]
[422385619,1778919149000,-297.7625525,0.0004,120]
[422385616,1778919149000,-4323.37375037,0.0004,120]
[422385617,1778919149000,-500.0,0.0004,120]
[422385618,1778919149000,-159.99107595,0.0004,120]
[422385620,1778919149000,-6134.36,0.0004,60]
[422385621,1778919149000,-624.0,0.0004,120]
[422385624,1778919149000,-1634.6527366,0.0004,120]
[422385625,1778919149000,-100000.0,0.0004,120]
[422385623,1778919149000,-510.41889918,0.0004,120]
[422385626,1778919149000,-6000000.0,0.0004,120]
[422385627,1778919149000,-5606864.50284537,0.0004,120]
[422385622,1778919149000,-251.42,0.0004,120]
[422385628,1778919151000,754.38739743,7.945e-05,2]
[422385629,1778919151000,6503.91197457,7.945e-05,2]
[422385640,1778919168000,-465.33,0.00028788,30]
[422385641,1778919168000,-1547.3,0.00028883,30]
[422385642,1778919168000,-2154.41,0.00028883,30]
[422385639,1778919168000,-532.82,0.00028788,30]
[422385637,1778919168000,-1547.3,0.00028788,30]
[422385634,1778919168000,-156.21801962,0.00016438,30]
[422385636,1778919168000,-532.82,0.00028693,30]
[422385635,1778919168000,-759.54,0.00026965,30]
[422385632,1778919168000,-156.21801962,0.00016438,30]
[422385633,1778919168000,-156.21801962,0.00016438,30]
[422385631,1778919168000,-156.21801962,0.00016438,30]
[422385638,1778919168000,-2154.41,0.00028788,30]
[422385643,1778919168000,-532.82,0.00028883,30]
[422385647,1778919168000,-532.82,0.00028979,30]
[422385645,1778919168000,-1547.3,0.00028979,30]
[422385644,1778919168000,-465.33,0.00028883,30]
[422385656,1778919168000,-532.82,0.00029169,30]
[422385657,1778919168000,-1516.24,0.00030537,30]
[422385654,1778919168000,-2154.41,0.00029169,30]
[422385653,1778919168000,-1547.3,0.00029169,30]
[422385655,1778919168000,-465.33,0.00029169,30]
[422385649,1778919168000,-1547.3,0.00029074,30]
[422385651,1778919168000,-532.82,0.00029074,30]
[422385650,1778919168000,-2154.41,0.00029074,30]
[422385648,1778919168000,-465.33,0.00028979,30]
[422385646,1778919168000,-2154.41,0.00028979,30]
[422385652,1778919168000,-465.33,0.00029074,30]
[422385666,1778919169000,-506.36,0.00033121,30]
[422385669,1778919169000,-719.68818606,0.000339,120]
[422385670,1778919169000,-178.1498634,0.00034932,60]
[422385668,1778919169000,-518.63258261,0.000339,120]
[422385667,1778919169000,-1701.79,0.00033121,30]
[422385664,1778919169000,-719.68818606,0.00033,120]
[422385658,1778919169000,-506.36,0.00030537,30]
[422385661,1778919169000,-518.63258261,0.00032,120]
[422385662,1778919169000,-719.68818606,0.00032,120]
[422385663,1778919169000,-518.63258261,0.00033,120]
[422385660,1778919169000,-175.05400199,0.00032,120]
[422385659,1778919169000,-1701.79,0.00030537,30]
[422385673,1778919169000,-518.63258261,0.00035,120]
[422385665,1778919169000,-1516.24,0.00033121,30]
[422385674,1778919169000,-1361.19,0.00035,30]
[422385672,1778919169000,-214.3210458,0.00034932,60]
[422385676,1778919169000,-1516.24,0.00035704,30]
[422385686,1778919169000,-200.0,0.00039,30]
[422385671,1778919169000,-807.8867411,0.00034932,60]
[422385689,1778919169000,-1361.19,0.00039,30]
[422385688,1778919169000,-200.0,0.00039,30]
[422385687,1778919169000,-508.29241533,0.00039,30]
[422385685,1778919169000,-500.0,0.00039,30]
[422385683,1778919169000,-506.36,0.00038288,30]
[422385684,1778919169000,-250.445888,0.00039,120]
[422385682,1778919169000,-1701.79,0.00038288,30]
[422385680,1778919169000,-719.68818606,0.00036,120]
[422385678,1778919169000,-1701.79,0.00035704,30]
[422385679,1778919169000,-518.63258261,0.00036,120]
[422385675,1778919169000,-719.68818606,0.00035,120]
[422385677,1778919169000,-506.36,0.00035704,30]
[422385681,1778919169000,-1516.24,0.00038288,30]
[422385699,1778919170000,-732.9695537,0.00039999,31]
[422385705,1778919170000,-4393135.49715463,0.0004,120]
[422385703,1778919170000,-500.0,0.00039999,31]
[422385700,1778919170000,-732.9695537,0.00039999,31]
[422385701,1778919170000,-732.9695537,0.00039999,31]
[422385697,1778919170000,-1224.66499459,0.000397,120]
[422385692,1778919170000,-807.886741,0.00039022,120]
[422385696,1778919170000,-248.88,0.00039137,30]
[422385694,1778919170000,-214.3210457,0.00039022,120]
[422385693,1778919170000,-250.35,0.00039022,120]
[422385695,1778919170000,-248.88638659,0.00039137,30]
[422385690,1778919170000,-178.1498634,0.00039022,120]
[422385691,1778919170000,-218.4864445,0.00039022,120]
[422385704,1778919170000,-341.9378359,0.00039999,31]
[422385698,1778919170000,-189.52755627,0.00039999,31]
[422385706,1778919170000,-500.0,0.0004,120]
[422385702,1778919170000,-732.9695537,0.00039999,31]
[422385709,1778919170000,-5136.0,0.0004,120]
[422385722,1778919170000,-183.97397785,0.0004,120]
[422385723,1778919170000,-4054.33423648,0.0004,120]
[422385721,1778919170000,-187.322726,0.0004,49]
[422385719,1778919170000,-342.0,0.0004,30]
[422385720,1778919170000,-150.0,0.0004,120]
[422385718,1778919170000,-250.0,0.0004,120]
[422385717,1778919170000,-5769.62499457,0.0004,120]
[422385708,1778919170000,-2618.0,0.0004,120]
[422385716,1778919170000,-500.0,0.0004,120]
[422385713,1778919170000,-1166.93090023,0.0004,120]
[422385714,1778919170000,-205.0,0.0004,120]
[422385712,1778919170000,-293600.0,0.0004,90]
[422385711,1778919170000,-209.03448992,0.0004,120]
[422385710,1778919170000,-1196.1895949,0.0004,120]
[422385707,1778919170000,-501186.54834367,0.0004,63]
[422385715,1778919170000,-13032.92,0.0004,120]
[422385739,1778919171000,-300.10343111,0.0004,60]
[422385737,1778919171000,-231.0,0.0004,120]
[422385738,1778919171000,-1080.1,0.0004,120]
[422385735,1778919171000,-178.45,0.0004,120]
[422385736,1778919171000,-232.0,0.0004,120]
[422385734,1778919171000,-18555.0,0.0004,120]
[422385731,1778919171000,-50000.0,0.0004,30]
[422385728,1778919171000,-40568.66532178,0.0004,60]
[422385733,1778919171000,-2500.0,0.0004,41]
[422385730,1778919171000,-5100.0,0.0004,90]
[422385729,1778919171000,-162.0,0.0004,120]
[422385726,1778919171000,-3757.899521,0.0004,30]
[422385725,1778919171000,-2000.0,0.0004,120]
[422385727,1778919171000,-3775.0,0.0004,120]
[422385741,1778919171000,-405.77770267,0.0004,120]
[422385732,1778919171000,-1000.0,0.0004,30]
[422385724,1778919171000,-502.516,0.0004,120]
[422385740,1778919171000,-615.81254803,0.0004,30]
[422385743,1778919171000,-553.04241721,0.0004,120]
[422385744,1778919171000,-278.05987868,0.0004,60]
[422385759,1778919171000,-185.0,0.0004,30]
[422385758,1778919171000,-246.0,0.0004,30]
[422385756,1778919171000,-189.0,0.0004,30]
[422385757,1778919171000,-397.46391884,0.0004,30]
[422385753,1778919171000,-11696.8521408,0.0004,120]
[422385754,1778919171000,-3080.0,0.0004,30]
[422385751,1778919171000,-498.62441733,0.0004,120]
[422385755,1778919171000,-3000.0,0.0004,100]
[422385750,1778919171000,-455.37,0.0004,30]
[422385749,1778919171000,-206.2096978,0.0004,120]
[422385746,1778919171000,-155.08904945,0.0004,120]
[422385748,1778919171000,-6014.09702614,0.0004,120]
[422385747,1778919171000,-229.08369876,0.0004,120]
[422385742,1778919171000,-402.95193305,0.0004,120]
[422385745,1778919171000,-541.73497644,0.0004,30]
[422385752,1778919171000,-1017.6894537,0.0004,120]
[422385770,1778919172000,-241.55,0.0004,120]
[422385774,1778919172000,-263336.0,0.0004,30]
[422385775,1778919172000,-150.0,0.0004,120]
[422385773,1778919172000,-12500.0,0.0004,120]
[422385772,1778919172000,-7496.91,0.0004,120]
[422385771,1778919172000,-3057.219249,0.0004,56]
[422385767,1778919172000,-153.58,0.0004,120]
[422385761,1778919172000,-119364.48865862,0.0004,30]
[422385769,1778919172000,-688.78,0.0004,120]
[422385764,1778919172000,-2000.0,0.0004,120]
[422385765,1778919172000,-453.35,0.0004,120]
[422385766,1778919172000,-391.99,0.0004,120]
[422385762,1778919172000,-366.28819224,0.0004,30]
[422385760,1778919172000,-3030.83131995,0.0004,120]
[422385763,1778919172000,-1000.0,0.0004,120]
[422385768,1778919172000,-341.16,0.0004,120]
[422385777,1778919172000,-2000.00279003,0.0004,90]
[422385780,1778919172000,-218.56,0.0004,120]
[422385779,1778919172000,-417.17,0.0004,120]
[422385794,1778919172000,-500.0,0.0004,120]
[422385793,1778919172000,-500.0,0.0004,120]
[422385792,1778919172000,-500.0,0.0004,120]
[422385790,1778919172000,-4551.16,0.0004,120]
[422385791,1778919172000,-500.0,0.0004,120]
[422385789,1778919172000,-500.0,0.0004,120]
[422385786,1778919172000,-500.0,0.0004,120]
[422385776,1778919172000,-5405.37617405,0.0004,120]
[422385787,1778919172000,-500.0,0.0004,120]
[422385785,1778919172000,-301.81,0.0004,120]
[422385784,1778919172000,-755.34,0.0004,120]
[422385782,1778919172000,-353.92,0.0004,120]
[422385783,1778919172000,-442.61,0.0004,120]
[422385781,1778919172000,-377.38,0.0004,120]
[422385778,1778919172000,-10034.33892789,0.0004,120]
[422385788,1778919172000,-500.0,0.0004,120]
[422385808,1778919173000,-398.35,0.0004,120]
[422385809,1778919173000,-908.33546276,0.0004,30]
[422385807,1778919173000,-1303.72745835,0.0004,60]
[422385805,1778919173000,-1303.72745835,0.0004,30]
[422385806,1778919173000,-1303.72745835,0.0004,30]
[422385804,1778919173000,-3801.29,0.0004,120]
[422385803,1778919173000,-1032.75,0.0004,120]
[422385798,1778919173000,-500.0,0.0004,120]
[422385800,1778919173000,-520.7535454,0.0004,120]
[422385801,1778919173000,-1055.92,0.0004,120]
[422385797,1778919173000,-500.0,0.0004,120]
[422385799,1778919173000,-500.0,0.0004,120]
[422385796,1778919173000,-500.0,0.0004,120]
[422385795,1778919173000,-500.0,0.0004,120]
[422385810,1778919173000,-346.441987,0.0004,30]
[422385802,1778919173000,-345.86,0.0004,120]
[422385812,1778919173000,-644.0,0.0004,30]
[422385811,1778919173000,-927.0,0.0004,30]
[422385813,1778919173000,-3146.0,0.0004,30]
[422385830,1778919173000,-150.0,0.00040206,120]
[422385826,1778919173000,-250.0,0.00040163,71]
[422385827,1778919173000,-597.97,0.00040188,120]
[422385828,1778919173000,-250.0,0.00040191,71]
[422385825,1778919173000,-300.0,0.00040137,120]
[422385822,1778919173000,-250.0,0.00040105,70]
[422385824,1778919173000,-250.0,0.00040134,70]
[422385823,1778919173000,-250.0,0.00040123,70]
[422385829,1778919173000,-259.940911,0.000402,50]
[422385820,1778919173000,-250.0,0.00040076,70]
[422385818,1778919173000,-414.93,0.00040062,120]
[422385819,1778919173000,-273.95,0.0004007,120]
[422385816,1778919173000,-500.0,0.0004002,30]
[422385814,1778919173000,-250.0,0.00040017,69]
[422385817,1778919173000,-250.0,0.00040047,69]
[422385815,1778919173000,-2389.44455616,0.0004002,120]
[422385821,1778919173000,-211.0,0.000401,120]
[422385845,1778919174000,-1887.46,0.00040318,120]
[422385844,1778919174000,-762.29,0.0004031,120]
[422385839,1778919174000,-150.0,0.000403,120]
[422385840,1778919174000,-152.0,0.000403,120]
[422385842,1778919174000,-206.2,0.0004031,120]
[422385841,1778919174000,-250.0,0.00040301,73]
[422385838,1778919174000,-10660.05303485,0.000403,120]
[422385832,1778919174000,-331.84,0.00040237,30]
[422385836,1778919174000,-104157.46397283,0.000403,120]
[422385835,1778919174000,-250.0,0.00040274,73]
[422385833,1778919174000,-250.0,0.00040243,72]
[422385834,1778919174000,-250.0,0.00040247,72]
[422385831,1778919174000,-250.0,0.00040219,72]
[422385843,1778919174000,-150.0,0.0004031,120]
[422385837,1778919174000,-185.00765921,0.000403,30]
[422385846,1778919174000,-434.59,0.00040318,120]
[422385847,1778919174000,-295.8,0.00040318,120]
[422385864,1778919174000,-250.0,0.0004038,75]
[422385865,1778919174000,-796372.21049141,0.000404,120]
[422385863,1778919174000,-500.0,0.00040376,30]
[422385860,1778919174000,-500.0,0.00040367,30]
[422385861,1778919174000,-2463.18,0.00040375,120]
[422385862,1778919174000,-500.0,0.00040376,30]
[422385858,1778919174000,-500.0,0.00040367,30]
[422385857,1778919174000,-500.0,0.00040367,30]
[422385859,1778919174000,-500.0,0.00040367,30]
[422385849,1778919174000,-408.7,0.00040318,120]
[422385854,1778919174000,-250.0,0.00040357,74]
[422385853,1778919174000,-500.0,0.00040356,30]
[422385856,1778919174000,-500.0,0.00040364,30]
[422385850,1778919174000,-250.0,0.00040328,74]
[422385852,1778919174000,-250.0,0.00040354,74]
[422385851,1778919174000,-166.49,0.00040351,30]
[422385848,1778919174000,-1140.85,0.00040318,120]
[422385855,1778919174000,-500.0,0.00040364,30]
[422385880,1778919175000,-192.73772803,0.000405,60]
[422385878,1778919175000,-221.12902805,0.000405,120]
[422385879,1778919175000,-244.62438627,0.000405,120]
[422385876,1778919175000,-500.0,0.0004049,120]
[422385877,1778919175000,-793.96780527,0.00040499,120]
[422385875,1778919175000,-250.0,0.00040482,77]
[422385874,1778919175000,-3921.90126099,0.00040475,120]
[422385867,1778919175000,-1460.0,0.00040411,120]
[422385873,1778919175000,-250.0,0.00040465,76]
[422385871,1778919175000,-250.0,0.00040457,76]
[422385869,1778919175000,-186.0,0.0004042,60]
[422385870,1778919175000,-250.0,0.00040432,76]
[422385868,1778919175000,-150.0,0.0004042,60]
[422385866,1778919175000,-250.0,0.00040406,75]
[422385881,1778919175000,-500.0,0.000405,120]
[422385872,1778919175000,-329.98140753,0.0004046,60]
[422385883,1778919175000,-50000.0,0.000405,30]
[422385886,1778919175000,-1455.03549352,0.000405,120]
[422385884,1778919175000,-500.0,0.000405,120]
[422385899,1778919175000,-250.0,0.00040531,78]
[422385900,1778919175000,-150.0,0.00040551,120]
[422385897,1778919175000,-191.73642226,0.00040518,120]
[422385898,1778919175000,-330.0,0.00040523,77]
[422385882,1778919175000,-150.0,0.000405,120]
[422385895,1778919175000,-157.57352818,0.00040507,60]
[422385893,1778919175000,-902.06,0.000405,31]
[422385894,1778919175000,-250.0,0.00040506,77]
[422385896,1778919175000,-500.0,0.00040507,60]
[422385891,1778919175000,-1107.0,0.000405,120]
[422385890,1778919175000,-500.0,0.000405,120]
[422385888,1778919175000,-1776.15,0.000405,120]
[422385889,1778919175000,-150.0,0.000405,120]
[422385887,1778919175000,-1531.44951573,0.000405,30]
[422385885,1778919175000,-211.0,0.000405,120]
[422385892,1778919175000,-300.0,0.000405,30]
[422385910,1778919176000,-1000.0,0.00040562,120]
[422385916,1778919176000,-1000.0,0.00040562,120]
[422385915,1778919176000,-1000.0,0.00040562,120]
[422385914,1778919176000,-1000.0,0.00040562,120]
[422385912,1778919176000,-1000.0,0.00040562,120]
[422385913,1778919176000,-1000.0,0.00040562,120]
[422385911,1778919176000,-1000.0,0.00040562,120]
[422385907,1778919176000,-1000.0,0.00040562,120]
[422385918,1778919176000,-1000.0,0.00040562,120]
[422385908,1778919176000,-1000.0,0.00040562,120]
[422385906,1778919176000,-1000.0,0.00040562,120]
[422385905,1778919176000,-1000.0,0.00040562,120]
[422385904,1778919176000,-1000.0,0.00040562,120]
[422385903,1778919176000,-1000.0,0.00040562,120]
[422385901,1778919176000,-250.0,0.00040555,78]
[422385902,1778919176000,-273.95,0.0004056,120]
[422385909,1778919176000,-1000.0,0.00040562,120]
[422385920,1778919176000,-1000.0,0.00040562,120]
[422385921,1778919176000,-1000.0,0.00040562,120]
[422385919,1778919176000,-1000.0,0.00040562,120]
[422385935,1778919176000,-250.0,0.00040569,78]
[422385933,1778919176000,-1000.0,0.00040562,120]
[422385934,1778919176000,-1187.0608924,0.00040562,120]
[422385932,1778919176000,-1000.0,0.00040562,120]
[422385929,1778919176000,-1000.0,0.00040562,120]
[422385931,1778919176000,-1000.0,0.00040562,120]
[422385928,1778919176000,-1000.0,0.00040562,120]
[422385936,1778919176000,-1000.0,0.0004057,120]
[422385927,1778919176000,-1000.0,0.00040562,120]
[422385930,1778919176000,-1000.0,0.00040562,120]
[422385937,1778919176000,-1000.0,0.0004057,120]
[422385922,1778919176000,-1000.0,0.00040562,120]
[422385917,1778919176000,-1000.0,0.00040562,120]
[422385923,1778919176000,-1000.0,0.00040562,120]
[422385925,1778919176000,-1000.0,0.00040562,120]
[422385926,1778919176000,-1000.0,0.00040562,120]
[422385924,1778919176000,-1000.0,0.00040562,120]
[422385951,1778919177000,-1000.0,0.0004057,120]
[422385950,1778919177000,-1000.0,0.0004057,120]
[422385949,1778919177000,-1000.0,0.0004057,120]
[422385946,1778919177000,-1000.0,0.0004057,120]
[422385948,1778919177000,-1000.0,0.0004057,120]
[422385947,1778919177000,-1000.0,0.0004057,120]
[422385943,1778919177000,-1000.0,0.0004057,120]
[422385942,1778919177000,-1000.0,0.0004057,120]
[422385944,1778919177000,-1000.0,0.0004057,120]
[422385939,1778919177000,-1000.0,0.0004057,120]
[422385941,1778919177000,-1000.0,0.0004057,120]
[422385938,1778919177000,-1000.0,0.0004057,120]
[422385952,1778919177000,-1000.0,0.0004057,120]
[422385945,1778919177000,-1000.0,0.0004057,120]
[422385940,1778919177000,-1000.0,0.0004057,120]
[422385954,1778919177000,-1000.0,0.0004057,120]
[422385955,1778919177000,-1000.0,0.0004057,120]
[422385953,1778919177000,-1000.0,0.0004057,120]
[422385968,1778919177000,-250.0,0.00040579,78]
[422385967,1778919177000,-1187.0608924,0.0004057,120]
[422385966,1778919177000,-1000.0,0.0004057,120]
[422385963,1778919177000,-1000.0,0.0004057,120]
[422385964,1778919177000,-1000.0,0.0004057,120]
[422385965,1778919177000,-1000.0,0.0004057,120]
[422385960,1778919177000,-1000.0,0.0004057,120]
[422385961,1778919177000,-1000.0,0.0004057,120]
[422385959,1778919177000,-1000.0,0.0004057,120]
[422385958,1778919177000,-1000.0,0.0004057,120]
[422385956,1778919177000,-1000.0,0.0004057,120]
[422385957,1778919177000,-1000.0,0.0004057,120]
[422385962,1778919177000,-1000.0,0.0004057,120]
[422385980,1778919178000,-10000.0,0.00040685,120]
[422385984,1778919178000,-150.0,0.000407,120]
[422385983,1778919178000,-83012.0,0.000407,120]
[422385981,1778919178000,-10000.0,0.00040685,120]
[422385979,1778919178000,-250.0,0.00040672,80]
[422385978,1778919178000,-250.0,0.00040667,80]
[422385977,1778919178000,-287.99,0.00040662,120]
[422385970,1778919178000,-701.88669604,0.000406,120]
[422385976,1778919178000,-447.22,0.00040662,120]
[422385974,1778919178000,-250.0,0.00040649,80]
[422385972,1778919178000,-250.0,0.00040626,79]
[422385971,1778919178000,-250.0,0.00040602,79]
[422385973,1778919178000,-150.5,0.00040629,120]
[422385969,1778919178000,-603.49127616,0.000406,120]
[422385975,1778919178000,-737.62,0.00040662,120]
[422385985,1778919178000,-1872.6399,0.000407,120]
[422385982,1778919178000,-250.0,0.00040694,81]
[422385988,1778919178000,-250.0,0.00040716,81]
[422386003,1778919178000,-350.0,0.00040767,120]
[422386001,1778919178000,-208.77630488,0.00040767,120]
[422386002,1778919178000,-350.0,0.00040767,120]
[422386000,1778919178000,-329.98140753,0.00040765,60]
[422385999,1778919178000,-250.0,0.00040761,82]
[422385997,1778919178000,-1418.72,0.0004075,120]
[422385998,1778919178000,-250.0,0.0004076,82]
[422385996,1778919178000,-241.1,0.0004075,120]
[422385987,1778919178000,-421.0,0.00040709,90]
[422385992,1778919178000,-464.88,0.00040729,120]
[422385995,1778919178000,-268.43099117,0.00040745,120]
[422385994,1778919178000,-250.0,0.00040738,82]
[422385991,1778919178000,-156.0,0.00040729,120]
[422385990,1778919178000,-300.0,0.00040729,120]
[422385989,1778919178000,-300.0,0.00040729,120]
[422385986,1778919178000,-12783.6,0.000407,31]
[422385993,1778919178000,-199.23,0.00040729,120]
[422386019,1778919179000,-300.0,0.00040822,120]
[422386018,1778919179000,-300.0,0.00040822,120]
[422386017,1778919179000,-300.0,0.00040822,120]
[422386016,1778919179000,-250.0,0.00040803,83]
[422386015,1778919179000,-21149.999999,0.000408,60]
[422386014,1778919179000,-10215.0,0.000408,30]
[422386013,1778919179000,-10060.60042766,0.000408,60]
[422386009,1778919179000,-201.512006,0.00040795,120]
[422386011,1778919179000,-255.52238461,0.000408,30]
[422386010,1778919179000,-201.512006,0.00040795,120]
[422386007,1778919179000,-201.512006,0.00040795,120]
[422386008,1778919179000,-201.512006,0.00040795,120]
[422386006,1778919179000,-250.0,0.00040782,83]
[422386004,1778919179000,-284.08696598,0.00040767,120]
[422386021,1778919179000,-300.0,0.00040822,120]
[422386012,1778919179000,-6469.98285757,0.000408,120]
[422386005,1778919179000,-208.77630488,0.00040767,120]
[422386022,1778919179000,-300.0,0.00040822,120]
[422386023,1778919179000,-300.0,0.00040822,120]
[422386020,1778919179000,-300.0,0.00040822,120]
[422386038,1778919179000,-300.0,0.00040822,120]
[422386037,1778919179000,-300.0,0.00040822,120]
[422386036,1778919179000,-300.0,0.00040822,120]
[422386035,1778919179000,-300.0,0.00040822,120]
[422386032,1778919179000,-300.0,0.00040822,120]
[422386033,1778919179000,-300.0,0.00040822,120]
[422386034,1778919179000,-300.0,0.00040822,120]
[422386029,1778919179000,-300.0,0.00040822,120]
[422386030,1778919179000,-300.0,0.00040822,120]
[422386028,1778919179000,-300.0,0.00040822,120]
[422386027,1778919179000,-300.0,0.00040822,120]
[422386024,1778919179000,-300.0,0.00040822,120]
[422386026,1778919179000,-300.0,0.00040822,120]
[422386025,1778919179000,-300.0,0.00040822,120]
[422386031,1778919179000,-300.0,0.00040822,120]
[422386048,1778919180000,-150.0,0.00040833,120]
[422386054,1778919180000,-250.0,0.00040886,85]
[422386052,1778919180000,-506.36,0.00040872,30]
[422386051,1778919180000,-1516.24,0.00040872,30]
[422386053,1778919180000,-1701.79,0.00040872,30]
[422386049,1778919180000,-250.0,0.00040851,84]
[422386046,1778919180000,-150.0,0.00040833,120]
[422386039,1778919180000,-300.0,0.00040822,120]
[422386045,1778919180000,-150.0,0.00040833,120]
[422386044,1778919180000,-250.0,0.00040824,84]
[422386042,1778919180000,-300.0,0.00040822,120]
[422386043,1778919180000,-344.493937,0.00040822,120]
[422386041,1778919180000,-300.0,0.00040822,120]
[422386040,1778919180000,-300.0,0.00040822,120]
[422386047,1778919180000,-150.0,0.00040833,120]
[422386056,1778919180000,-20000.0,0.000409,30]
[422386050,1778919180000,-250.0,0.00040866,85]
[422386057,1778919180000,-19013.49800123,0.000409,60]
[422386055,1778919180000,-4244.84375395,0.00040895,30]
[422386072,1778919180000,-2000.0,0.000409,120]
[422386071,1778919180000,-2000.0,0.000409,120]
[422386070,1778919180000,-2000.0,0.000409,120]
[422386069,1778919180000,-2000.0,0.000409,120]
[422386068,1778919180000,-2000.0,0.000409,120]
[422386067,1778919180000,-2000.0,0.000409,120]
[422386066,1778919180000,-2000.0,0.000409,120]
[422386073,1778919180000,-2000.0,0.000409,120]
[422386065,1778919180000,-2000.0,0.000409,120]
[422386062,1778919180000,-1000.0,0.000409,120]
[422386063,1778919180000,-2000.0,0.000409,120]
[422386061,1778919180000,-151.8,0.000409,120]
[422386059,1778919180000,-221.74397355,0.000409,30]
[422386060,1778919180000,-412.0,0.000409,120]
[422386058,1778919180000,-101605.94473646,0.000409,120]
[422386064,1778919180000,-2000.0,0.000409,120]
[422386087,1778919181000,-211.0,0.000409,120]
[422386086,1778919181000,-865.99,0.000409,120]
[422386085,1778919181000,-2000.0,0.000409,120]
[422386084,1778919181000,-2000.0,0.000409,120]
[422386083,1778919181000,-2000.0,0.000409,120]
[422386081,1778919181000,-2000.0,0.000409,120]
[422386082,1778919181000,-2000.0,0.000409,120]
[422386079,1778919181000,-2000.0,0.000409,120]
[422386077,1778919181000,-2000.0,0.000409,120]
[422386078,1778919181000,-2000.0,0.000409,120]
[422386076,1778919181000,-2000.0,0.000409,120]
[422386074,1778919181000,-2000.0,0.000409,120]
[422386075,1778919181000,-2000.0,0.000409,120]
[422386088,1778919181000,-428.97186695,0.000409,120]
[422386080,1778919181000,-2000.0,0.000409,120]